[Event "Late-Titled-Tuesday-Blitz-June-18-2024"]
[Site "Chess.com"]
[Date "2024.06.18"]
[Round "6"]
[White "WindWhistler11"]
[Black "chessforme17"]
[Result "1-0"]
[WhiteElo "2518"]
[BlackElo "2356"]
[TimeControl "180+1"]
[EndTime "15:06:14 PDT"]
[Termination "WindWhistler11 won by resignation"]

1. Nf3 {[%clk 0:02:46.2]} 1... g6 {[%clk 0:03:00.3]} 2. g3 {[%clk 0:02:46.7]}
2... Bg7 {[%clk 0:03:00.5]} 3. Bg2 {[%clk 0:02:47.1]} 3... Nf6 {[%clk
0:03:01.2]} 4. c4 {[%clk 0:02:47.5]} 4... O-O {[%clk 0:03:01.9]} 5. O-O {[%clk
0:02:48]} 5... d6 {[%clk 0:02:59.6]} 6. Nc3 {[%clk 0:02:46.4]} 6... e5 {[%clk
0:02:58.1]} 7. Rb1 {[%clk 0:02:45.7]} 7... Re8 {[%clk 0:02:53]} 8. b4 {[%clk
0:02:45.4]} 8... Nbd7 {[%clk 0:02:52.9]} 9. Ne1 {[%clk 0:02:36]} 9... Nh5 {[%clk
0:02:48.9]} 10. Ba3 {[%clk 0:02:24.5]} 10... f5 {[%clk 0:02:47.8]} 11. c5 {[%clk
0:02:23.3]} 11... e4 {[%clk 0:02:46.7]} 12. cxd6 {[%clk 0:02:22.9]} 12... cxd6
{[%clk 0:02:46.8]} 13. Qb3+ {[%clk 0:02:22.8]} 13... Kh8 {[%clk 0:02:47.2]} 14.
d3 {[%clk 0:02:22.7]} 14... exd3 {[%clk 0:02:43.6]} 15. Nxd3 {[%clk 0:02:21.2]}
15... Ne5 {[%clk 0:02:36.4]} 16. Rbd1 {[%clk 0:02:00.4]} 16... Be6 {[%clk
0:02:34]} 17. Bd5 {[%clk 0:02:00.9]} 17... Rc8 {[%clk 0:02:29.2]} 18. Bb2 {[%clk
0:01:52.6]} 18... Bxd5 {[%clk 0:02:15.4]} 19. Nxd5 {[%clk 0:01:48.3]} 19... Qd7
{[%clk 0:02:11.3]} 20. Nxe5 {[%clk 0:01:13.5]} 20... dxe5 {[%clk 0:02:04.4]} 21.
Nb6 {[%clk 0:01:02]} 21... Qxd1 {[%clk 0:02:03.1]} 22. Rxd1 {[%clk 0:01:00.5]}
22... axb6 {[%clk 0:02:04]} 23. Rd7 {[%clk 0:00:59.6]} 23... Red8 {[%clk
0:01:57.1]} 24. Qd5 {[%clk 0:00:51.6]} 24... Nf6 {[%clk 0:01:49.1]} 25. Rxd8+
{[%clk 0:00:49.4]} 1-0

[Event "Late-Titled-Tuesday-Blitz-June-18-2024"]
[Site "Chess.com"]
[Date "2024.06.18"]
[Round "6"]
[White "topce"]
[Black "Josetricks"]
[Result "1-0"]
[WhiteElo "2530"]
[BlackElo "2383"]
[TimeControl "180+1"]
[EndTime "15:06:44 PDT"]
[Termination "topce won by resignation"]

1. e4 {[%clk 0:02:58.9]} 1... g6 {[%clk 0:03:00.9]} 2. d4 {[%clk 0:02:58.5]}
2... Bg7 {[%clk 0:03:01.1]} 3. Nc3 {[%clk 0:02:57.6]} 3... c6 {[%clk 0:03:01.6]}
4. Nf3 {[%clk 0:02:54.9]} 4... d5 {[%clk 0:03:02.1]} 5. h3 {[%clk 0:02:54.3]}
5... dxe4 {[%clk 0:03:02.4]} 6. Nxe4 {[%clk 0:02:54.3]} 6... Nf6 {[%clk
0:03:03.3]} 7. Bd3 {[%clk 0:02:49.8]} 7... Nxe4 {[%clk 0:02:57.6]} 8. Bxe4
{[%clk 0:02:50.7]} 8... O-O {[%clk 0:02:58.2]} 9. O-O {[%clk 0:02:50]} 9... Nd7
{[%clk 0:02:58.8]} 10. c3 {[%clk 0:02:49.6]} 10... e5 {[%clk 0:02:59.2]} 11. Bg5
{[%clk 0:02:35.9]} 11... Qb6 {[%clk 0:02:57.6]} 12. dxe5 {[%clk 0:02:23.5]}
12... Nxe5 {[%clk 0:02:52.8]} 13. Nxe5 {[%clk 0:02:18.4]} 13... Bxe5 {[%clk
0:02:53.7]} 14. Be7 {[%clk 0:02:04.6]} 14... Re8 {[%clk 0:02:50.8]} 15. Ba3
{[%clk 0:01:46.3]} 15... Be6 {[%clk 0:02:50.2]} 16. Re1 {[%clk 0:01:44.7]} 16...
Rad8 {[%clk 0:02:41.2]} 17. Qf3 {[%clk 0:01:44.6]} 17... Bg7 {[%clk 0:02:37.3]}
18. Bc2 {[%clk 0:01:32.7]} 18... Bd5 {[%clk 0:02:28.4]} 19. Qg3 {[%clk
0:01:23.5]} 19... h5 {[%clk 0:02:18.6]} 20. Be7 {[%clk 0:01:10.9]} 20... Rxe7
{[%clk 0:02:02.5]} 21. Rxe7 {[%clk 0:01:07.3]} 21... Qxb2 {[%clk 0:02:02.6]} 22.
Bxg6 {[%clk 0:00:57.9]} 22... Qxa1+ {[%clk 0:01:57.6]} 23. Kh2 {[%clk
0:00:57.8]} 23... fxg6 {[%clk 0:01:52.6]} 24. Rxg7+ {[%clk 0:00:52.4]} 24...
Kxg7 {[%clk 0:01:49.4]} 25. Qc7+ {[%clk 0:00:52.1]} 25... Bf7 {[%clk 0:01:44.6]}
26. Qxd8 {[%clk 0:00:50.6]} 26... Qxc3 {[%clk 0:01:44.4]} 27. Qc7 {[%clk
0:00:46.2]} 27... Qb3 {[%clk 0:01:40.9]} 28. axb3 {[%clk 0:00:45.1]} 1-0

[Event "Late-Titled-Tuesday-Blitz-June-18-2024"]
[Site "Chess.com"]
[Date "2024.06.18"]
[Round "6"]
[White "AlexeiShirov"]
[Black "harshu27"]
[Result "1-0"]
[WhiteElo "2861"]
[BlackElo "2561"]
[TimeControl "180+1"]
[EndTime "15:06:45 PDT"]
[Termination "AlexeiShirov won by resignation"]

1. e4 {[%clk 0:03:00.9]} 1... e5 {[%clk 0:02:58.5]} 2. Nf3 {[%clk 0:02:59.7]}
2... Nc6 {[%clk 0:02:58.7]} 3. Bc4 {[%clk 0:02:59.3]} 3... Nf6 {[%clk 0:02:56]}
4. d3 {[%clk 0:02:58.5]} 4... Bc5 {[%clk 0:02:55.6]} 5. Bg5 {[%clk 0:02:57.8]}
5... h6 {[%clk 0:02:54.2]} 6. Bh4 {[%clk 0:02:57.3]} 6... g5 {[%clk 0:02:53.2]}
7. Bg3 {[%clk 0:02:56.2]} 7... d6 {[%clk 0:02:53.4]} 8. c3 {[%clk 0:02:55.7]}
8... a5 {[%clk 0:02:52.9]} 9. O-O {[%clk 0:02:44]} 9... Ba7 {[%clk 0:02:41.1]}
10. Re1 {[%clk 0:02:37.9]} 10... O-O {[%clk 0:02:32.7]} 11. d4 {[%clk
0:02:36.3]} 11... Qe7 {[%clk 0:02:12.3]} 12. Nbd2 {[%clk 0:02:32.1]} 12... exd4
{[%clk 0:02:07.7]} 13. e5 {[%clk 0:02:29.4]} 13... dxe5 {[%clk 0:01:54.4]} 14.
Nxe5 {[%clk 0:02:29]} 14... Nxe5 {[%clk 0:01:34.5]} 15. Bxe5 {[%clk 0:02:27.7]}
15... dxc3 {[%clk 0:01:30.4]} 16. Bxc3 {[%clk 0:02:25.6]} 16... Be6 {[%clk
0:01:29.2]} 17. Qf3 {[%clk 0:02:21.1]} 17... Ng4 {[%clk 0:00:50]} 18. Qxg4
{[%clk 0:02:16.9]} 18... Qc5 {[%clk 0:00:26.3]} 19. Rxe6 {[%clk 0:02:10]} 19...
Qxf2+ {[%clk 0:00:18.2]} 20. Kh1 {[%clk 0:02:09.8]} 20... fxe6 {[%clk
0:00:12.4]} 21. Qxe6+ {[%clk 0:02:09.3]} 21... Rf7 {[%clk 0:00:12.5]} 22. Rf1
{[%clk 0:01:51.2]} 1-0

[Event "Late-Titled-Tuesday-Blitz-June-18-2024"]
[Site "Chess.com"]
[Date "2024.06.18"]
[Round "6"]
[White "rychessmaster1"]
[Black "Javokhir_Sindarov05"]
[Result "1-0"]
[WhiteElo "2758"]
[BlackElo "3036"]
[TimeControl "180+1"]
[EndTime "15:06:47 PDT"]
[Termination "rychessmaster1 won by resignation"]

1. d4 {[%clk 0:03:00.9]} 1... Nf6 {[%clk 0:03:00]} 2. c4 {[%clk 0:03:00.8]} 2...
g6 {[%clk 0:03:00.3]} 3. Nc3 {[%clk 0:03:00.7]} 3... Bg7 {[%clk 0:03:01]} 4. e4
{[%clk 0:03:01.1]} 4... d6 {[%clk 0:03:01.6]} 5. Nf3 {[%clk 0:03:01.7]} 5... O-O
{[%clk 0:03:02.3]} 6. Be2 {[%clk 0:03:02.1]} 6... c5 {[%clk 0:03:03]} 7. d5
{[%clk 0:03:01.9]} 7... e6 {[%clk 0:03:03.4]} 8. h3 {[%clk 0:03:01.9]} 8... exd5
{[%clk 0:03:03.8]} 9. exd5 {[%clk 0:03:02.7]} 9... Bf5 {[%clk 0:03:03.3]} 10. g4
{[%clk 0:03:02.6]} 10... Be4 {[%clk 0:03:03.3]} 11. O-O {[%clk 0:03:02.5]} 11...
Bxf3 {[%clk 0:03:01]} 12. Bxf3 {[%clk 0:03:03.4]} 12... Nbd7 {[%clk 0:03:01.3]}
13. Bf4 {[%clk 0:03:02.5]} 13... Ne8 {[%clk 0:03:00.8]} 14. Qd2 {[%clk
0:02:52.5]} 14... f5 {[%clk 0:02:54.8]} 15. gxf5 {[%clk 0:02:39.4]} 15... Rxf5
{[%clk 0:02:49.3]} 16. Bg4 {[%clk 0:02:39.4]} 16... Rf8 {[%clk 0:02:50]} 17.
Rae1 {[%clk 0:02:27.3]} 17... Ne5 {[%clk 0:02:48.7]} 18. Bxe5 {[%clk 0:02:21.8]}
18... Bxe5 {[%clk 0:02:49.6]} 19. Ne4 {[%clk 0:02:22]} 19... Ng7 {[%clk
0:02:40.5]} 20. Kg2 {[%clk 0:02:20.1]} 20... Rf4 {[%clk 0:02:21.2]} 21. Nxc5
{[%clk 0:01:56.9]} 21... Qh4 {[%clk 0:02:20.9]} 22. Rxe5 {[%clk 0:01:56.4]}
22... Rxg4+ {[%clk 0:02:15.8]} 23. hxg4 {[%clk 0:01:56.9]} 23... Qxg4+ {[%clk
0:02:16.7]} 24. Kh2 {[%clk 0:01:56.5]} 24... dxe5 {[%clk 0:02:17.2]} 25. d6
{[%clk 0:01:48.1]} 25... b6 {[%clk 0:01:56.1]} 26. Qd5+ {[%clk 0:01:47.4]} 26...
Kf8 {[%clk 0:01:33.2]} 27. Qxa8+ {[%clk 0:01:44.1]} 27... Ne8 {[%clk 0:01:33.8]}
28. d7 {[%clk 0:01:16.3]} 28... Qh4+ {[%clk 0:01:27.4]} 29. Kg1 {[%clk
0:01:16.7]} 1-0

[Event "Late-Titled-Tuesday-Blitz-June-18-2024"]
[Site "Chess.com"]
[Date "2024.06.18"]
[Round "6"]
[White "IMJonathanCarlstedt"]
[Black "Kombinator01"]
[Result "0-1"]
[WhiteElo "2585"]
[BlackElo "2458"]
[TimeControl "180+1"]
[EndTime "15:06:50 PDT"]
[Termination "Kombinator01 won by checkmate"]

1. c4 {[%clk 0:03:00.9]} 1... c5 {[%clk 0:02:58.3]} 2. g3 {[%clk 0:03:00.8]}
2... g6 {[%clk 0:02:56.8]} 3. Bg2 {[%clk 0:03:00.9]} 3... Bg7 {[%clk 0:02:57.5]}
4. Nc3 {[%clk 0:03:01]} 4... e6 {[%clk 0:02:57.8]} 5. Nf3 {[%clk 0:03:00.2]}
5... Ne7 {[%clk 0:02:57.8]} 6. d4 {[%clk 0:02:59.3]} 6... cxd4 {[%clk
0:02:55.1]} 7. Nxd4 {[%clk 0:03:00.2]} 7... O-O {[%clk 0:02:54.5]} 8. O-O {[%clk
0:02:59.1]} 8... d5 {[%clk 0:02:54.7]} 9. cxd5 {[%clk 0:02:58.4]} 9... Nxd5
{[%clk 0:02:55.6]} 10. Nxd5 {[%clk 0:02:58.2]} 10... exd5 {[%clk 0:02:56.5]} 11.
b3 {[%clk 0:02:55.5]} 11... Nc6 {[%clk 0:02:56.6]} 12. Bb2 {[%clk 0:02:55.5]}
12... Nxd4 {[%clk 0:02:56.4]} 13. Bxd4 {[%clk 0:02:54.4]} 13... Be6 {[%clk
0:02:57.3]} 14. Rc1 {[%clk 0:02:51.5]} 14... Bxd4 {[%clk 0:02:56.3]} 15. Qxd4
{[%clk 0:02:50.6]} 15... Qa5 {[%clk 0:02:57]} 16. a4 {[%clk 0:02:45]} 16... Rac8
{[%clk 0:02:56.4]} 17. h4 {[%clk 0:02:38.5]} 17... h5 {[%clk 0:02:55.5]} 18.
Rfd1 {[%clk 0:02:06.4]} 18... Rfd8 {[%clk 0:02:51.3]} 19. e3 {[%clk 0:02:00.1]}
19... Rxc1 {[%clk 0:02:44]} 20. Rxc1 {[%clk 0:01:58.6]} 20... b6 {[%clk
0:02:33.6]} 21. Bf1 {[%clk 0:01:54.1]} 21... Kh7 {[%clk 0:02:25.8]} 22. Bb5
{[%clk 0:01:53]} 22... Rc8 {[%clk 0:02:17.7]} 23. Rxc8 {[%clk 0:01:49.6]} 23...
Qe1+ {[%clk 0:02:18.3]} 24. Kg2 {[%clk 0:01:46.9]} 24... Bh3+ {[%clk 0:02:14.1]}
25. Kf3 {[%clk 0:01:32.8]} 25... Qh1+ {[%clk 0:02:04.9]} 26. Kf4 {[%clk
0:01:23.7]} 26... Bxc8 {[%clk 0:02:02.6]} 27. Ke5 {[%clk 0:01:21.8]} 27... Be6
{[%clk 0:01:59.4]} 28. Kd6 {[%clk 0:01:18.4]} 28... Qc1 {[%clk 0:01:51.2]} 29.
f4 {[%clk 0:00:51.8]} 29... Qc8 {[%clk 0:01:47.6]} 30. Qe5 {[%clk 0:00:22.5]}
30... Qc5# {[%clk 0:01:46.3]} 0-1

[Event "Late-Titled-Tuesday-Blitz-June-18-2024"]
[Site "Chess.com"]
[Date "2024.06.18"]
[Round "6"]
[White "Roland_Garros_2024"]
[Black "PapaieDudu"]
[Result "0-1"]
[WhiteElo "2206"]
[BlackElo "2363"]
[TimeControl "180+1"]
[EndTime "15:06:51 PDT"]
[Termination "PapaieDudu won by resignation"]

1. e4 {[%clk 0:03:00.9]} 1... c5 {[%clk 0:03:00.4]} 2. Nf3 {[%clk 0:02:59.3]}
2... d6 {[%clk 0:03:01]} 3. d4 {[%clk 0:02:59.5]} 3... cxd4 {[%clk 0:03:01.9]}
4. Nxd4 {[%clk 0:02:59.9]} 4... Nf6 {[%clk 0:03:02.6]} 5. Nc3 {[%clk 0:03:00.4]}
5... a6 {[%clk 0:03:03]} 6. Bg5 {[%clk 0:03:01]} 6... e5 {[%clk 0:03:03.3]} 7.
Nf5 {[%clk 0:02:57.8]} 7... g6 {[%clk 0:03:02.8]} 8. Ne3 {[%clk 0:02:55.9]} 8...
h6 {[%clk 0:03:01.3]} 9. Bxf6 {[%clk 0:02:54.1]} 9... Qxf6 {[%clk 0:03:01]} 10.
Ncd5 {[%clk 0:02:51.6]} 10... Qd8 {[%clk 0:03:01.5]} 11. Bc4 {[%clk 0:02:46.5]}
11... Bg7 {[%clk 0:03:01.6]} 12. O-O {[%clk 0:02:46.1]} 12... O-O {[%clk
0:03:01.5]} 13. a4 {[%clk 0:02:46]} 13... Nc6 {[%clk 0:03:00.8]} 14. c3 {[%clk
0:02:43.9]} 14... Rb8 {[%clk 0:03:00.7]} 15. Qe2 {[%clk 0:02:43.1]} 15... b5
{[%clk 0:03:01.3]} 16. axb5 {[%clk 0:02:41.9]} 16... axb5 {[%clk 0:03:02]} 17.
Bxb5 {[%clk 0:02:41.4]} 17... Bd7 {[%clk 0:03:00.5]} 18. Ra6 {[%clk 0:02:21.9]}
18... Nd4 {[%clk 0:02:57.6]} 19. cxd4 {[%clk 0:01:28.4]} 19... Bxb5 {[%clk
0:02:57.8]} 20. Qg4 {[%clk 0:01:12.6]} 20... Bxa6 {[%clk 0:02:57.1]} 21. Rc1
{[%clk 0:01:13.1]} 21... exd4 {[%clk 0:02:55.3]} 22. Nf5 {[%clk 0:01:05.5]}
22... gxf5 {[%clk 0:02:56.2]} 23. exf5 {[%clk 0:01:04.5]} 23... Qg5 {[%clk
0:02:56.9]} 24. Qd1 {[%clk 0:00:48]} 24... Rfe8 {[%clk 0:02:57.4]} 25. Nc7
{[%clk 0:00:36.4]} 25... Be2 {[%clk 0:02:56.2]} 26. Qc2 {[%clk 0:00:31.2]} 26...
d3 {[%clk 0:02:55.4]} 27. h4 {[%clk 0:00:14.8]} 27... dxc2 {[%clk 0:02:48.6]}
28. hxg5 {[%clk 0:00:15]} 28... Rxb2 {[%clk 0:02:48.8]} 29. Kh2 {[%clk
0:00:10.4]} 29... Be5+ {[%clk 0:02:41.2]} 30. g3 {[%clk 0:00:09.5]} 30... Rc8
{[%clk 0:02:40]} 31. Nd5 {[%clk 0:00:05.9]} 31... Kh8 {[%clk 0:02:33.4]} 32. Ne3
{[%clk 0:00:03.9]} 32... hxg5 {[%clk 0:02:30.7]} 33. Kg2 {[%clk 0:00:03.5]}
33... g4 {[%clk 0:02:30.6]} 34. Rh1+ {[%clk 0:00:02.7]} 34... Kg7 {[%clk
0:02:29.4]} 35. Rc1 {[%clk 0:00:03.4]} 35... Bf3+ {[%clk 0:02:29.4]} 36. Kf1
{[%clk 0:00:02.1]} 36... Be4 {[%clk 0:02:29.4]} 37. Ke2 {[%clk 0:00:01.8]} 37...
Rb1 {[%clk 0:02:30]} 38. Kd2 {[%clk 0:00:02.1]} 38... Rxc1 {[%clk 0:02:27.6]}
39. Kxc1 {[%clk 0:00:03]} 0-1

[Event "Late-Titled-Tuesday-Blitz-June-18-2024"]
[Site "Chess.com"]
[Date "2024.06.18"]
[Round "6"]
[White "Crazy_girl99"]
[Black "Supergiuly"]
[Result "1-0"]
[WhiteElo "2626"]
[BlackElo "2350"]
[TimeControl "180+1"]
[EndTime "15:06:53 PDT"]
[Termination "Crazy_girl99 won by resignation"]

1. e4 {[%clk 0:02:53.4]} 1... g6 {[%clk 0:02:58.4]} 2. d4 {[%clk 0:02:53.4]}
2... Bg7 {[%clk 0:02:56.9]} 3. Be3 {[%clk 0:02:53.1]} 3... e6 {[%clk 0:02:57]}
4. c3 {[%clk 0:02:53.1]} 4... Ne7 {[%clk 0:02:57.6]} 5. f4 {[%clk 0:02:52.3]}
5... O-O {[%clk 0:02:58.5]} 6. Nd2 {[%clk 0:02:51.8]} 6... d5 {[%clk 0:02:58.7]}
7. e5 {[%clk 0:02:49.2]} 7... b6 {[%clk 0:02:55.7]} 8. Be2 {[%clk 0:02:47]} 8...
Ba6 {[%clk 0:02:55.3]} 9. Ngf3 {[%clk 0:02:45.7]} 9... Bxe2 {[%clk 0:02:53.8]}
10. Qxe2 {[%clk 0:02:46]} 10... Nd7 {[%clk 0:02:53.5]} 11. O-O {[%clk
0:02:45.1]} 11... c5 {[%clk 0:02:53.6]} 12. a4 {[%clk 0:02:42.1]} 12... c4
{[%clk 0:02:51.6]} 13. Bf2 {[%clk 0:02:37.6]} 13... h5 {[%clk 0:02:46.4]} 14.
Bh4 {[%clk 0:02:37.2]} 14... Qc7 {[%clk 0:02:39.4]} 15. h3 {[%clk 0:02:35.2]}
15... Nf5 {[%clk 0:02:32.3]} 16. Bg5 {[%clk 0:02:34.3]} 16... Ng3 {[%clk
0:02:32.2]} 17. Qf2 {[%clk 0:02:29.6]} 17... Nxf1 {[%clk 0:02:26.1]} 18. Rxf1
{[%clk 0:02:29.7]} 18... f6 {[%clk 0:02:24.9]} 19. exf6 {[%clk 0:02:28.9]} 19...
Bxf6 {[%clk 0:02:25.2]} 20. Qe3 {[%clk 0:02:26.2]} 20... Rae8 {[%clk 0:02:18.3]}
21. Bxf6 {[%clk 0:02:12.7]} 21... Nxf6 {[%clk 0:02:13.8]} 22. Ne5 {[%clk
0:02:12.2]} 22... Kg7 {[%clk 0:02:09.3]} 23. Qg3 {[%clk 0:02:09.7]} 23... Kh7
{[%clk 0:00:55.2]} 24. Qxg6+ {[%clk 0:02:06.3]} 24... Kh8 {[%clk 0:00:55.6]} 25.
Qg5 {[%clk 0:01:59.6]} 25... Qg7 {[%clk 0:00:13.8]} 26. Ng6+ {[%clk 0:01:58.2]}
26... Kg8 {[%clk 0:00:14.2]} 27. Nxf8 {[%clk 0:01:56.7]} 27... Rxf8 {[%clk
0:00:15.1]} 28. Qe5 {[%clk 0:01:55.5]} 28... Rf7 {[%clk 0:00:14.7]} 29. Qxe6
{[%clk 0:01:54.3]} 29... Nh7 {[%clk 0:00:15.1]} 30. Nf3 {[%clk 0:01:52.7]} 30...
Nf6 {[%clk 0:00:15.4]} 31. Ng5 {[%clk 0:01:52.5]} 1-0

[Event "Late-Titled-Tuesday-Blitz-June-18-2024"]
[Site "Chess.com"]
[Date "2024.06.18"]
[Round "6"]
[White "JanistanTV"]
[Black "jcmesafischer"]
[Result "1-0"]
[WhiteElo "2751"]
[BlackElo "2367"]
[TimeControl "180+1"]
[EndTime "15:06:53 PDT"]
[Termination "JanistanTV won by resignation"]

1. e4 {[%clk 0:03:00.9]} 1... c5 {[%clk 0:02:43.9]} 2. Nf3 {[%clk 0:02:59.9]}
2... d6 {[%clk 0:02:42.7]} 3. d4 {[%clk 0:02:59.3]} 3... cxd4 {[%clk 0:02:43.6]}
4. Nxd4 {[%clk 0:02:59.5]} 4... Nf6 {[%clk 0:02:43.3]} 5. Nc3 {[%clk 0:02:59.6]}
5... a6 {[%clk 0:02:42.6]} 6. Be3 {[%clk 0:02:59.2]} 6... e5 {[%clk 0:02:40.4]}
7. Nf3 {[%clk 0:02:58.8]} 7... Be7 {[%clk 0:02:40]} 8. Bc4 {[%clk 0:02:57]} 8...
Be6 {[%clk 0:02:38.7]} 9. Bxe6 {[%clk 0:02:46.7]} 9... fxe6 {[%clk 0:02:39.6]}
10. Ng5 {[%clk 0:02:45.6]} 10... Qd7 {[%clk 0:02:39.2]} 11. Qf3 {[%clk
0:02:44.2]} 11... Nc6 {[%clk 0:02:39.3]} 12. Qh3 {[%clk 0:02:39.4]} 12... Nd8
{[%clk 0:02:38.9]} 13. Bb6 {[%clk 0:02:35.1]} 13... h6 {[%clk 0:02:23.2]} 14.
Bxd8 {[%clk 0:02:28.7]} 14... Bxd8 {[%clk 0:02:16.1]} 15. Nxe6 {[%clk
0:02:27.8]} 15... Ba5 {[%clk 0:02:16.5]} 16. f4 {[%clk 0:01:55.8]} 16... Nxe4
{[%clk 0:01:57.1]} 17. O-O {[%clk 0:01:50]} 17... Bxc3 {[%clk 0:00:58.3]} 18.
bxc3 {[%clk 0:01:50.9]} 18... Nc5 {[%clk 0:00:52.9]} 19. Qh5+ {[%clk 0:01:46.7]}
19... Ke7 {[%clk 0:00:44.2]} 20. Nxc5 {[%clk 0:01:43.7]} 20... dxc5 {[%clk
0:00:43]} 21. Qxe5+ {[%clk 0:01:40.9]} 21... Kf7 {[%clk 0:00:38.3]} 22. Rad1
{[%clk 0:01:39.2]} 22... Qc6 {[%clk 0:00:37.2]} 23. Rd6 {[%clk 0:01:35.9]} 23...
Qc7 {[%clk 0:00:25.8]} 24. Rf6+ {[%clk 0:01:32.6]} 1-0

[Event "Late-Titled-Tuesday-Blitz-June-18-2024"]
[Site "Chess.com"]
[Date "2024.06.18"]
[Round "6"]
[White "ChessWarrior7197"]
[Black "matagordo"]
[Result "1-0"]
[WhiteElo "3150"]
[BlackElo "2412"]
[TimeControl "180+1"]
[EndTime "15:06:54 PDT"]
[Termination "ChessWarrior7197 won by resignation"]

1. a3 {[%clk 0:03:00.9]} 1... b6 {[%clk 0:02:59.5]} 2. f4 {[%clk 0:03:00.1]}
2... Bb7 {[%clk 0:02:59.7]} 3. Nf3 {[%clk 0:03:00]} 3... e6 {[%clk 0:02:59.8]}
4. Nc3 {[%clk 0:02:59.2]} 4... Nf6 {[%clk 0:02:58.9]} 5. g3 {[%clk 0:02:58.4]}
5... c5 {[%clk 0:02:55.8]} 6. Bg2 {[%clk 0:02:58.1]} 6... Be7 {[%clk 0:02:55.9]}
7. O-O {[%clk 0:02:58]} 7... O-O {[%clk 0:02:56.2]} 8. d3 {[%clk 0:02:58.4]}
8... d5 {[%clk 0:02:55.4]} 9. Ne5 {[%clk 0:02:57.9]} 9... a6 {[%clk 0:02:54.5]}
10. e4 {[%clk 0:02:57.8]} 10... Qc7 {[%clk 0:02:51.4]} 11. Qe2 {[%clk 0:02:54]}
11... Nbd7 {[%clk 0:02:44.4]} 12. Nxd7 {[%clk 0:02:53.3]} 12... Nxd7 {[%clk
0:02:45.3]} 13. exd5 {[%clk 0:02:53.3]} 13... c4 {[%clk 0:01:41.8]} 14. dxc4
{[%clk 0:02:44.4]} 14... Bc5+ {[%clk 0:01:41.8]} 15. Kh1 {[%clk 0:02:43.9]}
15... Rfe8 {[%clk 0:01:40.9]} 16. Qd3 {[%clk 0:02:37.7]} 16... Nf6 {[%clk
0:01:33.8]} 17. b4 {[%clk 0:02:36.7]} 17... Bf8 {[%clk 0:01:30.7]} 18. Bb2
{[%clk 0:02:36.8]} 18... Rad8 {[%clk 0:01:30.5]} 19. Rad1 {[%clk 0:02:36.1]}
19... exd5 {[%clk 0:01:23.8]} 20. Nxd5 {[%clk 0:02:35.3]} 20... Nxd5 {[%clk
0:01:09.6]} 21. cxd5 {[%clk 0:02:36.2]} 21... Rc8 {[%clk 0:00:56.4]} 22. Rf2
{[%clk 0:02:23.2]} 22... Qc4 {[%clk 0:00:53.2]} 23. Qxc4 {[%clk 0:02:20.9]}
23... Rxc4 {[%clk 0:00:54.1]} 24. d6 {[%clk 0:02:21]} 24... Bxg2+ {[%clk
0:00:52.2]} 25. Kxg2 {[%clk 0:02:21.9]} 25... Rd8 {[%clk 0:00:51]} 26. d7 {[%clk
0:02:21.7]} 26... f6 {[%clk 0:00:48.8]} 27. f5 {[%clk 0:01:59]} 27... a5 {[%clk
0:00:47.5]} 28. b5 {[%clk 0:01:49.7]} 28... Rc5 {[%clk 0:00:44.1]} 29. a4 {[%clk
0:01:49.3]} 29... Rc4 {[%clk 0:00:44]} 30. Rd4 {[%clk 0:01:47.9]} 30... Rxd4
{[%clk 0:00:41.7]} 31. Bxd4 {[%clk 0:01:48.8]} 31... Rxd7 {[%clk 0:00:37.5]} 32.
Bxb6 {[%clk 0:01:49.7]} 32... Bb4 {[%clk 0:00:35.1]} 33. c4 {[%clk 0:01:48.2]}
33... Rd4 {[%clk 0:00:29.3]} 34. Bxd4 {[%clk 0:01:47.2]} 1-0

[Event "Late-Titled-Tuesday-Blitz-June-18-2024"]
[Site "Chess.com"]
[Date "2024.06.18"]
[Round "6"]
[White "AustinThomas12345"]
[Black "schondeln"]
[Result "0-1"]
[WhiteElo "2451"]
[BlackElo "2363"]
[TimeControl "180+1"]
[EndTime "15:07:07 PDT"]
[Termination "schondeln won by resignation"]

1. e4 {[%clk 0:02:54.9]} 1... d5 {[%clk 0:02:59.3]} 2. exd5 {[%clk 0:02:54.7]}
2... Qxd5 {[%clk 0:03:00.2]} 3. Nc3 {[%clk 0:02:55.3]} 3... Qa5 {[%clk
0:03:00.2]} 4. Bc4 {[%clk 0:02:56]} 4... Nf6 {[%clk 0:03:00.2]} 5. d3 {[%clk
0:02:56.2]} 5... Bg4 {[%clk 0:02:59.2]} 6. f3 {[%clk 0:02:55]} 6... Bd7 {[%clk
0:02:58.9]} 7. Ne2 {[%clk 0:02:53]} 7... e6 {[%clk 0:02:54.5]} 8. Bf4 {[%clk
0:02:51.3]} 8... Bd6 {[%clk 0:02:48.3]} 9. Qd2 {[%clk 0:02:46.2]} 9... a6 {[%clk
0:02:34.4]} 10. O-O {[%clk 0:02:40.3]} 10... O-O {[%clk 0:02:26.8]} 11. Ne4
{[%clk 0:02:26.3]} 11... Qxd2 {[%clk 0:02:22]} 12. Nxf6+ {[%clk 0:02:26.2]}
12... gxf6 {[%clk 0:02:21.4]} 13. Bxd2 {[%clk 0:02:27.1]} 13... c5 {[%clk
0:02:16.5]} 14. d4 {[%clk 0:02:18.7]} 14... Nc6 {[%clk 0:01:51.9]} 15. d5 {[%clk
0:02:10]} 15... Ne5 {[%clk 0:01:49.3]} 16. dxe6 {[%clk 0:01:59.7]} 16... fxe6
{[%clk 0:01:48.5]} 17. Bd3 {[%clk 0:01:54.1]} 17... Nxd3 {[%clk 0:01:38.6]} 18.
cxd3 {[%clk 0:01:55]} 18... Bb5 {[%clk 0:01:29.3]} 19. Rfd1 {[%clk 0:01:44.9]}
19... Rfd8 {[%clk 0:01:27.8]} 20. Bc3 {[%clk 0:01:42.8]} 20... Kf7 {[%clk
0:01:27.5]} 21. a4 {[%clk 0:01:41.1]} 21... Bc6 {[%clk 0:01:22.2]} 22. d4 {[%clk
0:01:38.2]} 22... b5 {[%clk 0:01:16]} 23. dxc5 {[%clk 0:01:29]} 23... Bxc5+
{[%clk 0:01:15.4]} 24. Kf1 {[%clk 0:01:26.8]} 24... bxa4 {[%clk 0:01:09.2]} 25.
Nd4 {[%clk 0:01:16.5]} 25... Be8 {[%clk 0:01:00.3]} 26. Rac1 {[%clk 0:01:10.5]}
26... Rac8 {[%clk 0:00:55.4]} 27. g4 {[%clk 0:00:55.4]} 27... Bxd4 {[%clk
0:00:53.3]} 0-1